Workbook

Sheet Rebate Analysis
A1: WM Skagit County | G1: WM Skagit County
A2: 2017 - 2018 Rebate Calculation | G2: 2016 - 2017 Rebate Calculation
A5: Residential | G5: Residential
D7: Commodity | E7: Total | J7: Commodity | K7: Total
C8: Customers | D8: Credit | E8: Credits | I8: Customers | J8: Credit | K8: Credits
A9: Projected Revenue May 2016-Apr 2017 | G9: Projected Revenue May 2015-Apr 2016
A10: May - June projected value without adjustment factor | C10: =+Customers!C20+Customers!D20 -> 18118 | D10: =+J11 -> 2.32 | E10: =C10*D10 -> 42033.76 | G10: May - June projected value without adjustment factor | I10: 17149 | J10: 2.37 | K10: =I10*J10 -> 40643.13
A11: July - April projected value without adjustment factor | C11: =SUM(Customers!E20:N20) -> 93257 | D11: =+L26 -> 1.71 | E11: =C11*D11 -> 159469.47 | G11: July - April projected value without adjustment factor | I11: 87893 | J11: 2.32 | K11: =I11*J11 -> 203911.76
A12: Total | C12: =SUM(C10:C11) -> 111375 | E12: =SUM(E10:E11) -> 201503.23 | G12: Total | I12: =SUM(I10:I11) -> 105042 | K12: =SUM(K10:K11) -> 244554.89
A14: Actual Commodity Revenue | E14: =+'Commodity Revenue'!Y40 -> 231467.233 | G14: Actual Commodity Revenue (adj. to reflect current customers) | K14: 183627
A16: Owe Customer (company) | E16: =E14-E12 -> 29964.00296 | G16: Owe Customer (company) | K16: =K14-K12 -> -60927.89
A18: Total Current Customers | E18: =+C12 -> 111375 | G18: Total Customers | K18: =+I12 -> 105042
A21: Adjust for Under/(Over) payment in 2016-2017 | F21: =+E16/E18 -> 0.2690370636 | G21: Adjust for Under/(Over) payment in 2015-2016 | L21: -0.65
A24: Projected Revenue May 2017-Apr 2018 | E24: =+E14 -> 231467.233 | G24: Projected Revenue May 2016-Apr 2017 | K24: =+K14 -> 183627
A25: Total Customers | E25: =+Customers!N20*12 -> 113724 | G25: Total Customers | K25: 107280
A26: Projected Value | F26: =ROUND(+E24/E25,2) -> 2.04 | G26: Projected Value | L26: =ROUND(+K24/K25,2) -> 1.71
A29: Residential Commodity Adjustment | F29: =SUM(F20:F26) -> 2.309037064 | G29: Residential Commodity Adjustment | L29: =SUM(L20:L26) -> 1.06

Sheet Commodity Revenue
A1: Waste Management of Skagit County
A2: Single Stream Tonnage and Revenue
C4: Total Single Stream Tonnage Processed | O4: Total Single Stream Commodity Revenue | AA4: Average rate per ton
D5: Mixed | J5: Natural | K5: Colored | L5: Mixed | P5: Mixed | V5: Natural | W5: Colored | X5: Mixed | AB5: Mixed | AH5: Natural | AI5: Colored | AJ5: Mixed
C6: ONP 6 | D6: Paper | E6: OCC | F6: Alum. | G6: Tin | H6: Glass | I6: PET | J6: HDPE | K6: HDPE | L6: Plastics | M6: Total | O6: ONP 6 | P6: Paper | Q6: OCC | R6: Alum. | S6: Tin | T6: Glass | U6: PET | V6: HDPE | W6: HDPE | X6: Plastics | Y6: Total | AA6: ONP 6 | AB6: Paper | AC6: OCC | AD6: Alum. | AE6: Tin | AF6: Glass | AG6: PET | AH6: HDPE | AI6: HDPE | AJ6: Plastics
C7: =+'CRC Composition'!$AC8 -> 0.3320509338 | D7: =+'CRC Composition'!$AC9 -> 0.217114487 | E7: =+'CRC Composition'!$AC10 -> 0.1962782512 | F7: =+'CRC Composition'!$AC11 -> 0.004781717373 | G7: =+'CRC Composition'!AC12 -> 0.01091268465 | H7: =+'CRC Composition'!AC13 -> 0.2199108861 | I7: =+'CRC Composition'!AC14 -> 0.008788302268 | J7: =+'CRC Composition'!$AC15 -> 0.002908565024 | K7: =+'CRC Composition'!$AC16 -> 0.002442844154 | L7: =+'CRC Composition'!$AC17 -> 0.004811328418 | M7: =+M20/$M$20 -> 1
A8: May | C8: =+'Tonnages Collected'!$E10*C$7 -> 233.9208733 | D8: =+'Tonnages Collected'!$E10*D$7 -> 152.9512651 | E8: =+'Tonnages Collected'!$E10*E$7 -> 138.2727023 | F8: =+'Tonnages Collected'!$E10*F$7 -> 3.368590146 | G8: =+'Tonnages Collected'!$E10*G$7 -> 7.687690239 | H8: =+'Tonnages Collected'!$E10*H$7 -> 154.9212524 | I8: =+'Tonnages Collected'!$E10*I$7 -> 6.191120494 | J8: =+'Tonnages Collected'!$E10*J$7 -> 2.049005141 | K8: =+'Tonnages Collected'!$E10*K$7 -> 1.720917425 | L8: =+'Tonnages Collected'!$E10*L$7 -> 3.389450324 | M8: =SUM(C8:L8) -> 704.4728669 | O8: =+C8*'CRC Prices'!B8 -> 19639.99652 | P8: =+D8*'CRC Prices'!C8 -> 12077.03189 | Q8: =+E8*'CRC Prices'!D8 -> 14900.2664 | R8: =+F8*'CRC Prices'!E8 -> 3840.192767 | S8: =+G8*'CRC Prices'!F8 -> 951.1979132 | T8: =+H8*'CRC Prices'!G8 -> -8263.499605 | U8: =+I8*'CRC Prices'!H8 -> 1269.179701 | V8: =+J8*'CRC Prices'!I8 -> 1352.343393 | W8: =+K8*'CRC Prices'!J8 -> 843.249538 | X8: =+L8*'CRC Prices'!K8 -> 84.7362581 | Y8: =SUM(O8:X8) -> 46694.69478 | AA8: =+O8/C8 -> 83.96 | AB8: =+P8/D8 -> 78.96 | AC8: 107.76 | AD8: 1140 | AE8: 123.73 | AF8: -53.34 | AG8: 205 | AH8: 660 | AI8: 490 | AJ8: =+X8/L8 -> 25
A9: Jun | C9: =+'Tonnages Collected'!$E11*C$7 -> 265.6238162 | D9: =+'Tonnages Collected'!$E11*D$7 -> 173.6805192 | E9: =+'Tonnages Collected'!$E11*E$7 -> 157.012593 | F9: =+'Tonnages Collected'!$E11*F$7 -> 3.825130085 | G9: =+'Tonnages Collected'!$E11*G$7 -> 8.729591294 | H9: =+'Tonnages Collected'!$E11*H$7 -> 175.917496 | I9: =+'Tonnages Collected'!$E11*I$7 -> 7.030193711 | J9: =+'Tonnages Collected'!$E11*J$7 -> 2.326703715 | K9: =+'Tonnages Collected'!$E11*K$7 -> 1.954150766 | L9: =+'Tonnages Collected'!$E11*L$7 -> 3.848817411 | M9: 799.9490113 | O9: =+C9*'CRC Prices'!B9 -> 22474.43109 | P9: =+D9*'CRC Prices'!C9 -> 14212.27689 | Q9: =+E9*'CRC Prices'!D9 -> 17279.23586 | R9: =+F9*'CRC Prices'!E9 -> 4131.140492 | S9: =+G9*'CRC Prices'!F9 -> 673.6625601 | T9: =+H9*'CRC Prices'!G9 -> -9383.439234 | U9: =+I9*'CRC Prices'!H9 -> 1417.287052 | V9: =+J9*'CRC Prices'!I9 -> 1651.959638 | W9: =+K9*'CRC Prices'!J9 -> 918.4508599 | X9: =+L9*'CRC Prices'!K9 -> 76.97634822 | Y9: =SUM(O9:X9) -> 53451.98155 | AA9: =+O9/C9 -> 84.61 | AB9: 81.83 | AC9: 110.05 | AD9: 1080 | AE9: 77.17 | AF9: -53.34 | AG9: 201.6 | AH9: 710 | AI9: 470 | AJ9: =+X9/L9 -> 20
A10: Jul | C10: =+'Tonnages Collected'!$E12*C$7 -> 249.5647887 | D10: =+'Tonnages Collected'!$E12*D$7 -> 163.1801798 | E10: =+'Tonnages Collected'!$E12*E$7 -> 147.5199594 | F10: =+'Tonnages Collected'!$E12*F$7 -> 3.593871193 | G10: =+'Tonnages Collected'!$E12*G$7 -> 8.201819541 | H10: =+'Tonnages Collected'!$E12*H$7 -> 165.2819138 | I10: =+'Tonnages Collected'!$E12*I$7 -> 6.605163771 | J10: =+'Tonnages Collected'!$E12*J$7 -> 2.186036363 | K10: =+'Tonnages Collected'!$E12*K$7 -> 1.836007139 | L10: =+'Tonnages Collected'!$E12*L$7 -> 3.616126436 | M10: 751.5858661 | O10: =+C10*'CRC Prices'!B10 -> 24394.95809 | P10: =+D10*'CRC Prices'!C10 -> 14873.87339 | Q10: =+E10*'CRC Prices'!D10 -> 18465.07332 | R10: =+F10*'CRC Prices'!E10 -> 3881.380888 | S10: =+G10*'CRC Prices'!F10 -> 728.4035934 | T10: =+H10*'CRC Prices'!G10 -> -8816.137283 | U10: =+I10*'CRC Prices'!H10 -> 1380.479228 | V10: =+J10*'CRC Prices'!I10 -> 1530.225454 | W10: =+K10*'CRC Prices'!J10 -> 853.7433197 | X10: =+L10*'CRC Prices'!K10 -> 0 | Y10: 57291.99999 | AA10: 97.75 | AB10: 91.15 | AC10: 125.17 | AD10: 1080 | AE10: 88.81 | AF10: -53.34 | AG10: 209 | AH10: 700 | AI10: 465 | AJ10: 0
A11: Aug | C11: =+'Tonnages Collected'!$E13*C$7 -> 258.3393791 | D11: =+'Tonnages Collected'!$E13*D$7 -> 168.9175246 | E11: =+'Tonnages Collected'!$E13*E$7 -> 152.7066976 | F11: =+'Tonnages Collected'!$E13*F$7 -> 3.720230156 | G11: =+'Tonnages Collected'!$E13*G$7 -> 8.490191982 | H11: =+'Tonnages Collected'!$E13*H$7 -> 171.0931547 | I11: =+'Tonnages Collected'!$E13*I$7 -> 6.837398484 | J11: =+'Tonnages Collected'!$E13*J$7 -> 2.262896459 | K11: =+'Tonnages Collected'!$E13*K$7 -> 1.900560359 | L11: =+'Tonnages Collected'!$E13*L$7 -> 3.743267883 | M11: 778.0113013 | O11: =+C11*'CRC Prices'!B11 -> 30290.2922 | P11: =+D11*'CRC Prices'!C11 -> 18721.12925 | Q11: =+E11*'CRC Prices'!D11 -> 22554.77924 | R11: =+F11*'CRC Prices'!E11 -> 4226.107052 | S11: =+G11*'CRC Prices'!F11 -> 819.4733301 | T11: =+H11*'CRC Prices'!G11 -> -9126.108872 | U11: =+I11*'CRC Prices'!H11 -> 1460.468316 | V11: =+J11*'CRC Prices'!I11 -> 1482.197181 | W11: =+K11*'CRC Prices'!J11 -> 762.3717768 | X11: =+L11*'CRC Prices'!K11 -> -27.32585555 | Y11: 71163.38362 | AA11: 117.25 | AB11: 110.83 | AC11: 147.7 | AD11: 1135.98 | AE11: 96.52 | AF11: -53.34 | AG11: 213.6 | AH11: 655 | AI11: 401.13 | AJ11: -7.3
A12: Sep | C12: =+'Tonnages Collected'!$E14*C$7 -> 244.4731203 | D12: =+'Tonnages Collected'!$E14*D$7 -> 159.8509466 | E12: =+'Tonnages Collected'!$E14*E$7 -> 144.5102291 | F12: =+'Tonnages Collected'!$E14*F$7 -> 3.520548348 | G12: =+'Tonnages Collected'!$E14*G$7 -> 8.034484456 | H12: =+'Tonnages Collected'!$E14*H$7 -> 161.9098007 | I12: =+'Tonnages Collected'!$E14*I$7 -> 6.470403962 | J12: =+'Tonnages Collected'!$E14*J$7 -> 2.141436432 | K12: =+'Tonnages Collected'!$E14*K$7 -> 1.798548572 | L12: =+'Tonnages Collected'!$E14*L$7 -> 3.542349535 | M12: 736.251868 | O12: =+C12*'CRC Prices'!B12 -> 26500.88624 | P12: =+D12*'CRC Prices'!C12 -> 15113.90701 | Q12: =+E12*'CRC Prices'!D12 -> 17910.59779 | R12: =+F12*'CRC Prices'!E12 -> 3925.622641 | S12: =+G12*'CRC Prices'!F12 -> 855.1101806 | T12: =+H12*'CRC Prices'!G12 -> -8636.268771 | U12: =+I12*'CRC Prices'!H12 -> 1188.160279 | V12: =+J12*'CRC Prices'!I12 -> 1199.204402 | W12: =+K12*'CRC Prices'!J12 -> 701.4339429 | X12: =+L12*'CRC Prices'!K12 -> -12.53991735 | Y12: 58746.11379 | AA12: 108.4 | AB12: 94.55 | AC12: 123.94 | AD12: 1115.06 | AE12: 106.43 | AF12: -53.34 | AG12: 183.63 | AH12: 560 | AI12: 390 | AJ12: -3.54
A13: Oct | C13: =+'Tonnages Collected'!$E15*C$7 -> 227.5106679 | D13: =+'Tonnages Collected'!$E15*D$7 -> 148.7598947 | E13: =+'Tonnages Collected'!$E15*E$7 -> 134.4835731 | F13: =+'Tonnages Collected'!$E15*F$7 -> 3.276279638 | G13: =+'Tonnages Collected'!$E15*G$7 -> 7.477022106 | H13: =+'Tonnages Collected'!$E15*H$7 -> 150.6758979 | I13: =+'Tonnages Collected'!$E15*I$7 -> 6.021463321 | J13: =+'Tonnages Collected'!$E15*J$7 -> 1.992855625 | K13: =+'Tonnages Collected'!$E15*K$7 -> 1.673758597 | L13: =+'Tonnages Collected'!$E15*L$7 -> 3.296568178 | M13: 685.167981 | O13: =+C13*'CRC Prices'!B13 -> 24061.52824 | P13: =+D13*'CRC Prices'!C13 -> 13433.01849 | Q13: =+E13*'CRC Prices'!D13 -> 17952.21217 | R13: =+F13*'CRC Prices'!E13 -> 3852.478938 | S13: =+G13*'CRC Prices'!F13 -> 648.0335059 | T13: =+H13*'CRC Prices'!G13 -> -8037.052392 | U13: =+I13*'CRC Prices'!H13 -> 1150.099494 | V13: =+J13*'CRC Prices'!I13 -> 1076.142038 | W13: =+K13*'CRC Prices'!J13 -> 836.8792984 | X13: =+L13*'CRC Prices'!K13 -> 137.7306185 | Y13: 55111.0704 | AA13: 105.76 | AB13: 90.3 | AC13: 133.49 | AD13: 1175.87 | AE13: 86.67 | AF13: -53.34 | AG13: 191 | AH13: 540 | AI13: 500 | AJ13: 41.78
A14: Nov | C14: =+'Tonnages Collected'!$E16*C$7 -> 246.3749759 | D14: =+'Tonnages Collected'!$E16*D$7 -> 161.094492 | E14: =+'Tonnages Collected'!$E16*E$7 -> 145.6344328 | F14: =+'Tonnages Collected'!$E16*F$7 -> 3.547936122 | G14: =+'Tonnages Collected'!$E16*G$7 -> 8.09698797 | H14: =+'Tonnages Collected'!$E16*H$7 -> 163.1693627 | I14: =+'Tonnages Collected'!$E16*I$7 -> 6.520739859 | J14: =+'Tonnages Collected'!$E16*J$7 -> 2.158095535 | K14: =+'Tonnages Collected'!$E16*K$7 -> 1.812540211 | L14: =+'Tonnages Collected'!$E16*L$7 -> 3.569906909 | M14: 741.97947 | O14: =+C14*'CRC Prices'!B14 -> 27761.53228 | P14: =+D14*'CRC Prices'!C14 -> 16305.98448 | Q14: =+E14*'CRC Prices'!D14 -> 20929.12433 | R14: =+F14*'CRC Prices'!E14 -> 4445.741357 | S14: =+G14*'CRC Prices'!F14 -> 768.0802788 | T14: =+H14*'CRC Prices'!G14 -> -8703.453808 | U14: =+I14*'CRC Prices'!H14 -> 1267.631829 | V14: =+J14*'CRC Prices'!I14 -> 1079.047767 | W14: =+K14*'CRC Prices'!J14 -> 833.7684968 | X14: =+L14*'CRC Prices'!K14 -> 129.7661161 | Y14: 64817.22313 | AA14: 112.68 | AB14: 101.22 | AC14: 143.71 | AD14: 1253.05 | AE14: 94.86 | AF14: -53.34 | AG14: 194.4 | AH14: 500 | AI14: 460 | AJ14: 36.35
A15: Dec | C15: =+'Tonnages Collected'!$E17*C$7 -> 240.4858418 | D15: =+'Tonnages Collected'!$E17*D$7 -> 157.2438288 | E15: =+'Tonnages Collected'!$E17*E$7 -> 142.1533134 | F15: =+'Tonnages Collected'!$E17*F$7 -> 3.46312933 | G15: =+'Tonnages Collected'!$E17*G$7 -> 7.903444582 | H15: =+'Tonnages Collected'!$E17*H$7 -> 159.2691036 | I15: =+'Tonnages Collected'!$E17*I$7 -> 6.364873741 | J15: =+'Tonnages Collected'!$E17*J$7 -> 2.106510288 | K15: =+'Tonnages Collected'!$E17*K$7 -> 1.769214819 | L15: =+'Tonnages Collected'!$E17*L$7 -> 3.484574946 | M15: 724.2438354 | O15: =+C15*'CRC Prices'!B15 -> 29416.22817 | P15: =+D15*'CRC Prices'!C15 -> 15735.38995 | Q15: =+E15*'CRC Prices'!D15 -> 21475.10106 | R15: =+F15*'CRC Prices'!E15 -> 4350.036751 | S15: =+G15*'CRC Prices'!F15 -> 917.9850882 | T15: =+H15*'CRC Prices'!G15 -> -8495.413987 | U15: =+I15*'CRC Prices'!H15 -> 1143.131324 | V15: =+J15*'CRC Prices'!I15 -> 1078.533268 | W15: =+K15*'CRC Prices'!J15 -> 569.6871718 | X15: =+L15*'CRC Prices'!K15 -> 38.85301065 | Y15: 66229.53181 | AA15: 122.32 | AB15: 100.07 | AC15: 151.07 | AD15: 1256.1 | AE15: 116.15 | AF15: -53.34 | AG15: 179.6 | AH15: 512 | AI15: 322 | AJ15: 11.15
A16: Jan., '17 | C16: =+'Tonnages Collected'!$E18*C$7 -> 228.933469 | D16: =+'Tonnages Collected'!$E18*D$7 -> 149.690206 | E16: =+'Tonnages Collected'!$E18*E$7 -> 135.3246034 | F16: =+'Tonnages Collected'!$E18*F$7 -> 3.296768761 | G16: =+'Tonnages Collected'!$E18*G$7 -> 7.523781738 | H16: =+'Tonnages Collected'!$E18*H$7 -> 151.6181914 | I16: =+'Tonnages Collected'!$E18*I$7 -> 6.059120212 | J16: =+'Tonnages Collected'!$E18*J$7 -> 2.0053185 | K16: =+'Tonnages Collected'!$E18*K$7 -> 1.68422591 | L16: =+'Tonnages Collected'!$E18*L$7 -> 3.317184181 | M16: 689.452869 | O16: =+C16*'CRC Prices'!B16 -> 29868.94969 | P16: =+D16*'CRC Prices'!C16 -> 18399.92012 | Q16: =+E16*'CRC Prices'!D16 -> 21846.80397 | R16: =+F16*'CRC Prices'!E16 -> 4368.251577 | S16: =+G16*'CRC Prices'!F16 -> 982.154468 | T16: =+H16*'CRC Prices'!G16 -> -8087.314328 | U16: =+I16*'CRC Prices'!H16 -> 1157.291961 | V16: =+J16*'CRC Prices'!I16 -> 1046.776257 | W16: =+K16*'CRC Prices'!J16 -> 505.2677731 | X16: =+L16*'CRC Prices'!K16 -> 14.23072014 | Y16: 70102.33221 | AA16: 130.47 | AB16: 122.92 | AC16: 161.44 | AD16: 1325.01 | AE16: 130.54 | AF16: -53.34 | AG16: 191 | AH16: 522 | AI16: 300 | AJ16: 4.29
A17: Feb | C17: =+'Tonnages Collected'!$E19*C$7 -> 193.3366763 | D17: =+'Tonnages Collected'!$E19*D$7 -> 126.4149232 | E17: =+'Tonnages Collected'!$E19*E$7 -> 114.2830236 | F17: =+'Tonnages Collected'!$E19*F$7 -> 2.78415523 | G17: =+'Tonnages Collected'!$E19*G$7 -> 6.353911296 | H17: =+'Tonnages Collected'!$E19*H$7 -> 128.0431268 | I17: =+'Tonnages Collected'!$E19*I$7 -> 5.116989528 | J17: =+'Tonnages Collected'!$E19*J$7 -> 1.693512161 | K17: =+'Tonnages Collected'!$E19*K$7 -> 1.422346157 | L17: =+'Tonnages Collected'!$E19*L$7 -> 2.801396263 | M17: 582.2500606 | O17: =+C17*'CRC Prices'!B17 -> 26982.06655 | P17: =+D17*'CRC Prices'!C17 -> 16572.99643 | Q17: =+E17*'CRC Prices'!D17 -> 21532.06448 | R17: =+F17*'CRC Prices'!E17 -> 3786.451113 | S17: =+G17*'CRC Prices'!F17 -> 835.0945617 | T17: =+H17*'CRC Prices'!G17 -> -6829.820382 | U17: =+I17*'CRC Prices'!H17 -> 1156.439633 | V17: =+J17*'CRC Prices'!I17 -> 1022.881346 | W17: =+K17*'CRC Prices'!J17 -> 469.3742317 | X17: =+L17*'CRC Prices'!K17 -> -14.00698131 | Y17: 65513.54098 | AA17: 139.56 | AB17: 131.1 | AC17: 188.41 | AD17: 1360 | AE17: 131.43 | AF17: -53.34 | AG17: 226 | AH17: 604 | AI17: 330 | AJ17: -5
A18: Mar | C18: =+'Tonnages Collected'!$E20*C$7 -> 234.8935869 | D18: =+'Tonnages Collected'!$E20*D$7 -> 153.5872826 | E18: =+'Tonnages Collected'!$E20*E$7 -> 138.8476819 | F18: =+'Tonnages Collected'!$E20*F$7 -> 3.382597761 | G18: =+'Tonnages Collected'!$E20*G$7 -> 7.719657975 | H18: =+'Tonnages Collected'!$E20*H$7 -> 155.5654618 | I18: =+'Tonnages Collected'!$E20*I$7 -> 6.216865042 | J18: =+'Tonnages Collected'!$E20*J$7 -> 2.057525523 | K18: =+'Tonnages Collected'!$E20*K$7 -> 1.728073519 | L18: =+'Tonnages Collected'!$E20*L$7 -> 3.403544682 | M18: 707.4022777 | O18: =+C18*'CRC Prices'!B18 -> 34400.1658 | P18: =+D18*'CRC Prices'!C18 -> 21540.61639 | Q18: =+E18*'CRC Prices'!D18 -> 28395.73943 | R18: =+F18*'CRC Prices'!E18 -> 4651.308703 | S18: =+G18*'CRC Prices'!F18 -> 1013.899878 | T18: =+H18*'CRC Prices'!G18 -> -8297.86173 | U18: =+I18*'CRC Prices'!H18 -> 1518.158443 | V18: =+J18*'CRC Prices'!I18 -> 1339.449115 | W18: =+K18*'CRC Prices'!J18 -> 660.1240841 | X18: =+L18*'CRC Prices'!K18 -> -136.1417873 | Y18: 85085.45833 | AA18: 146.45 | AB18: 140.25 | AC18: 204.51 | AD18: 1375.07 | AE18: 131.34 | AF18: -53.34 | AG18: 244.2 | AH18: 651 | AI18: 382 | AJ18: -40
A19: Apr | C19: =+'Tonnages Collected'!$E21*C$7 -> 206.6129777 | D19: =+'Tonnages Collected'!$E21*D$7 -> 135.0957522 | E19: =+'Tonnages Collected'!$E21*E$7 -> 122.1307631 | F19: =+'Tonnages Collected'!$E21*F$7 -> 2.975341324 | G19: =+'Tonnages Collected'!$E21*G$7 -> 6.790230173 | H19: =+'Tonnages Collected'!$E21*H$7 -> 136.8357634 | I19: =+'Tonnages Collected'!$E21*I$7 -> 5.468369807 | J19: =+'Tonnages Collected'!$E21*J$7 -> 1.809804519 | K19: =+'Tonnages Collected'!$E21*K$7 -> 1.520017724 | L19: =+'Tonnages Collected'!$E21*L$7 -> 2.993766287 | M19: 622.2327862 | O19: =+C19*'CRC Prices'!B19 -> 16210.85423 | P19: =+D19*'CRC Prices'!C19 -> 9834.970759 | Q19: =+E19*'CRC Prices'!D19 -> 20966.1881 | R19: =+F19*'CRC Prices'!E19 -> 3939.441173 | S19: =+G19*'CRC Prices'!F19 -> 920.1440907 | T19: =+H19*'CRC Prices'!G19 -> -7298.81962 | U19: =+I19*'CRC Prices'!H19 -> 1306.940384 | V19: =+J19*'CRC Prices'!I19 -> 1158.274892 | W19: =+K19*'CRC Prices'!J19 -> 699.2081531 | X19: =+L19*'CRC Prices'!K19 -> -145.8263558 | Y19: 47591.37581 | AA19: 78.46 | AB19: 72.8 | AC19: 171.67 | AD19: 1324.03 | AE19: 135.51 | AF19: -53.34 | AG19: 239 | AH19: 640 | AI19: 460 | AJ19: -48.71
C20: =SUM(C8:C19) -> 2830.070173 | D20: =SUM(D8:D19) -> 1850.466815 | E20: 1672.879573 | F20: 40.75457809 | G20: 93.00881335 | H20: 1874.300525 | I20: 74.90270193 | J20: 24.78970026 | K20: 20.8203612 | L20: 41.00695303 | M20: 8523.000194 | O20: =SUM(O8:O19) -> 312001.8891 | P20: =SUM(P8:P19) -> 186821.115 | Q20: 244207.1862 | R20: 49398.15345 | S20: 10113.23945 | T20: -99975.19001 | U20: 15415.26764 | V20: 15017.03475 | W20: 8653.558646 | X20: 146.4521744 | Y20: =SUM(Y8:Y19) -> 741798.7064 | AA20: =+O20/C20 -> 110.2452837 | AB20: =+P20/D20 -> 100.9589113 | AC20: =+Q20/E20 -> 145.9801352 | AD20: =+R20/F20 -> 1212.088451 | AE20: =+S20/G20 -> 108.7342058 | AF20: =+T20/H20 -> -53.34 | AG20: =+U20/I20 -> 205.8038929 | AH20: =+V20/J20 -> 605.7771813 | AI20: =+W20/K20 -> 415.629612 | AJ20: 3.571398594
C23: Total Single Stream Tonnage Processed | O23: Total Single Stream Commodity Revenue
B24: % | D24: Mixed | J24: Natural | K24: Colored | L24: Mixed | P24: Mixed | V24: Natural | W24: Colored | X24: Mixed | AB24: lbs./
B25: Reg. | C25: =+C6 -> ONP 6 | D25: Paper | E25: =+E6 -> OCC | F25: Alum. | G25: Tin | H25: Glass | I25: PET | J25: HDPE | K25: HDPE | L25: Plastics | M25: Total | O25: =+O6 -> ONP 6 | P25: Paper | Q25: =+Q6 -> OCC | R25: Alum. | S25: Tin | T25: Glass | U25: PET | V25: HDPE | W25: HDPE | X25: Plastics | Y25: Total | AA25: Customers | AB25: Customer
A28: May | B28: =+Customers!C$21 -> 0.3092019488 | C28: =+C8*$B28 -> 72.32878989 | D28: =+D8*$B28 -> 47.29282925 | E28: =+E8*$B28 -> 42.75418902 | F28: 1.041574638 | G28: 2.377048804 | H28: 47.90195316 | I28: 1.914306522 | J28: 0.6335563828 | K28: 0.5321110214 | L28: 1.048024646 | M28: =SUM(C28:L28) -> 217.8243833 | O28: =+O8*$B$40 -> 6128.368263 | P28: 3768.457845 | Q28: 4649.406105 | R28: 1198.274931 | S28: 296.8071352 | T28: -2578.501919 | U28: 396.028614 | V28: 421.9786049 | W28: 263.1234533 | X28: 26.4406867 | Y28: =SUM(O28:X28) -> 14570.38372 | AA28: =+Customers!C$20 -> 9012 | AB28: =+M28*2000/AA28 -> 48.3409639
A29: Jun | B29: =+Customers!D$21 -> 0.3106789492 | C29: =+C9*$B29 -> 82.52372809 | D29: 53.95888121 | E29: =+E9*$B29 -> 48.78050739 | F29: 1.188387395 | G29: 2.71210025 | H29: 54.65386278 | I29: 2.184133194 | J29: 0.7228578653 | K29: 0.6071135064 | L29: 1.195746549 | M29: =SUM(C29:L29) -> 248.5273182 | O29: =+O9*$B$40 -> 7012.811335 | P29: 4434.729229 | Q29: 5391.728075 | R29: 1289.060833 | S29: 210.2063638 | T29: -2927.962392 | U29: 442.2433059 | V29: 515.4693895 | W29: 286.5889052 | X29: 24.01932245 | Y29: =SUM(O29:X29) -> 16678.89437 | AA29: =+Customers!D$20 -> 9106 | AB29: 54.58539825
A30: =+A10 -> Jul | B30: =+Customers!E$21 -> 0.3112416392 | C30: 77.67495391 | D30: 50.78846664 | E30: =+E10*$B30 -> 45.91435398 | F30: 1.118562361 | G30: 2.552747758 | H30: 51.44261379 | I30: 2.055802 | J30: 0.6803855409 | K30: 0.5714418716 | L30: 1.125489119 | M30: 233.924817 | O30: =+O10*$B$40 -> 7612.083168 | P30: 4641.170558 | Q30: 5761.750985 | R30: 1211.127071 | S30: 227.2874875 | T30: -2750.944272 | U30: 430.7579729 | V30: 477.4840513 | W30: 266.3978815 | X30: 0 | Y30: 17877.1149 | AA30: =+Customers!E$20 -> 9167 | AB30: 51.03628602
A31: Aug | B31: =+Customers!F$21 -> 0.3122631294 | C31: 80.66986297 | D31: 52.74671484 | E31: =+E11*$B31 -> 47.68467128 | F31: 1.161690711 | G31: 2.651173918 | H31: 53.4260839 | I31: 2.135067448 | J31: 0.7066191299 | K31: 0.5934749253 | L31: 1.168884543 | M31: 242.9442437 | O31: =+O11*$B$40 -> 9451.634332 | P31: 5841.649423 | Q31: 7037.882777 | R31: 1318.693733 | S31: 255.7044419 | T31: -2847.666287 | U31: 455.7173759 | V31: 462.4975444 | W31: 237.886753 | X31: -8.526626047 | Y31: 22205.47347 | AA31: =+Customers!F$20 -> 9228 | AB31: 52.65371557
A32: Sep | B32: =+Customers!G$21 -> 0.3120543522 | C32: 76.28890119 | D32: 49.88218361 | E32: =+E12*$B32 -> 45.09504592 | F32: 1.098602434 | G32: 2.507195842 | H32: 50.52465798 | I32: 2.019117717 | J32: 0.6682445587 | K32: 0.5612449094 | L32: 1.10540559 | M32: 229.7505997 | O32: =+O12*$B$40 -> 8269.206667 | P32: 4716.069472 | Q32: 5588.735159 | R32: 1224.93205 | S32: 266.8243901 | T32: -2694.818983 | U32: 370.7477107 | V32: 374.1938646 | W32: 218.87201 | X32: -3.912894356 | Y32: 18330.84945 | AA32: =+Customers!G$20 -> 9278 | AB32: 49.52588915
A33: Oct | B33: =+Customers!H$21 -> 0.3120624663 | C33: 70.99754014 | D33: 46.42237964 | E33: =+E13*$B33 -> 41.96727549 | F33: 1.022403904 | G33: 2.333297959 | H33: 47.0202923 | I33: 1.879072695 | J33: 0.6218954414 | K33: 0.5223172358 | L33: 1.028735196 | M33: 213.81521 | O33: =+O13*$B$40 -> 7508.041351 | P33: 4191.573258 | Q33: 5601.720305 | R33: 1202.108648 | S33: 202.2091993 | T33: -2507.84244 | U33: 358.8714098 | V33: 335.7940875 | W33: 261.1357149 | X33: 42.9767872 | Y33: 17196.58832 | AA33: =+Customers!H$20 -> 9272 | AB33: 46.12062338
A34: Nov | B34: =+Customers!I$21 -> 0.3125819796 | C34: 77.01237768 | D34: 50.35523522 | E34: =+E14*$B34 -> 45.52269929 | F34: 1.109020897 | G34: 2.530972528 | H34: 51.00380242 | I34: 2.038265774 | J34: 0.6745817745 | K34: 0.5665674071 | L34: 1.115888569 | M34: 231.9294116 | O34: =+O14*$B$40 -> 8662.572479 | P34: 5088.039485 | Q34: 6530.621388 | R34: 1387.227346 | S34: 239.668006 | T34: -2715.783073 | U34: 395.5456234 | V34: 336.7007772 | W34: 260.1650356 | X34: 40.49158293 | Y34: 20225.24865 | AA34: =+Customers!I$20 -> 9294 | AB34: 49.90949248
A35: Dec | B35: =+Customers!J$21 -> 0.3119327506 | C35: 75.01541012 | D35: 49.04950003 | E35: =+E15*$B35 -> 44.34227406 | F35: 1.080263458 | G35: 2.465343208 | H35: 49.68124958 | I35: 1.985412573 | J35: 0.6570895484 | K35: 0.551876045 | L35: 1.086953048 | M35: 225.9153717 | O35: =+O15*$B$40 -> 9178.895677 | P35: 4909.993964 | Q35: 6700.98529 | R35: 1357.364149 | S35: 286.4435681 | T35: -2650.867346 | U35: 356.6970961 | V35: 336.5402352 | W35: 177.7623932 | X35: 12.12350303 | Y35: 20665.93853 | AA35: =+Customers!J$20 -> 9314 | AB35: 48.5109237
A36: Jan., '17 | B36: =+Customers!K$21 -> 0.3125458547 | C36: 71.55220673 | D36: 46.78505337 | E36: =+E16*$B36 -> 42.29514383 | F36: 1.03039141 | G36: 2.351526794 | H36: 47.38763722 | I36: 1.893752906 | J36: 0.6267539847 | K36: 0.5263978267 | L36: 1.036772165 | M36: 215.4856362 | O36: =+O16*$B$40 -> 9320.160682 | P36: 5741.4209 | Q36: 6816.969645 | R36: 1363.047814 | S36: 306.4666669 | T36: -2523.525929 | U36: 361.1157117 | V36: 326.6309333 | W36: 157.6612797 | X36: 4.44048417 | Y36: 21874.38819 | AA36: =+Customers!K$20 -> 9372 | AB36: 45.98498426
A37: Feb | B37: =+Customers!L$21 -> 0.3120590976 | C37: 60.33246874 | D37: 39.44892686 | E37: =+E17*$B37 -> 35.66305722 | F37: 0.8688209685 | G37: 1.982795825 | H37: 39.95702259 | I37: 1.596803134 | J37: 0.5284758768 | K37: 0.443856058 | L37: 0.8742011896 | M37: 181.6964285 | O37: =+O17*$B$40 -> 8419.351812 | P37: 5171.356587 | Q37: 6718.759877 | R37: 1181.505649 | S37: 260.5788144 | T37: -2131.143681 | U37: 360.8497557 | V37: 319.1748821 | W37: 146.461235 | X37: -4.370669804 | Y37: 20442.52426 | AA37: =+Customers!L$20 -> 9378 | AB37: 38.7495049
A38: Mar | B38: =+Customers!M$21 -> 0.3138287304 | C38: 73.71635615 | D38: 48.20010192 | E38: =+E18*$B38 -> 43.57439174 | F38: 1.061556361 | G38: 2.422650461 | H38: 48.82091135 | I38: 1.951030863 | J38: 0.6457106226 | K38: 0.5423191184 | L38: 1.068130106 | M38: 222.0031587 | O38: =+O18*$B$40 -> 10734.05915 | P38: 6721.428373 | Q38: 8860.467372 | R38: 1451.371573 | S38: 316.3723492 | T38: -2589.224108 | U38: 473.7187205 | V38: 417.9551376 | W38: 205.9818841 | X38: -42.4810161 | Y38: 26549.64943 | AA38: =+Customers!M$20 -> 9477 | AB38: 46.85093567
A39: Apr | B39: =+Customers!N$21 -> 0.3138287304 | C39: 64.84108847 | D39: 42.39692839 | E39: =+E19*$B39 -> 38.32814232 | F39: 0.9337475901 | G39: 2.130969314 | H39: 42.9429939 | I39: 1.716131554 | J39: 0.5679686544 | K39: 0.4770252325 | L39: 0.9395298728 | M39: 195.2745253 | O39: =+O19*$B$40 -> 5058.355508 | P39: 3068.856077 | Q39: 6542.186584 | R39: 1229.243917 | S39: 287.1172526 | T39: -2277.487904 | U39: 407.8112723 | V39: 361.4224209 | W39: 218.1774854 | X39: -45.50294141 | Y39: 14850.17967 | AA39: =+Customers!N$20 -> 9477 | AB39: 41.21019844
B40: =+Customers!O21 -> 0.3120350992 | C40: =SUM(C28:C39) -> 882.9536841 | D40: =SUM(D28:D39) -> 577.327201 | E40: 521.9217516 | F40: 12.71502213 | G40: 29.01782266 | H40: 584.763081 | I40: 23.36889638 | J40: 7.73413938 | K40: 6.495745158 | L40: 12.79376059 | M40: 2659.091104 | O40: =SUM(O28:O39) -> 97355.54042 | P40: =SUM(P28:P39) -> 58294.74517 | Q40: 76201.21356 | R40: 15413.95771 | S40: 3155.685675 | T40: -31195.76833 | U40: 4810.104569 | V40: 4685.841928 | W40: 2700.214031 | X40: 45.69821878 | Y40: =SUM(Y28:Y39) -> 231467.233 | AA40: =SUM(AA28:AA39) -> 111375 | AB40: 47.75023307

Sheet CRC Prices
A1: Cascade Recycling Center
A2: Monthly Price per ton of Commodities Sold
B5: Passback Price/ton schedule
I6: Natural | J6: Colored | K6: Mixed
A7: Month | B7: ONP 6 | C7: Mixed Paper | D7: OCC | E7: Alum. | F7: Tin | G7: Glass | H7: PET | I7: HDPE | J7: HDPE | K7: Plastics 3-7
A8: 2016-05-10 | B8: 83.96 | C8: 78.96 | D8: 107.76 | E8: 1140 | F8: 123.73 | G8: -53.34 | H8: 205 | I8: 660 | J8: 490 | K8: 25
A9: 2016-06-10 | B9: 84.61 | C9: 81.83 | D9: 110.05 | E9: 1080 | F9: 77.17 | G9: =+G8 -> -53.34 | H9: 201.6 | I9: 710 | J9: 470 | K9: 20
A10: 2016-07-10 | B10: 97.75 | C10: 91.15 | D10: 125.17 | E10: 1080 | F10: 88.81 | G10: -53.34 | H10: 209 | I10: 700 | J10: 465 | K10: 0
A11: 2016-08-10 | B11: 117.25 | C11: 110.83 | D11: 147.7 | E11: 1135.98 | F11: 96.52 | G11: -53.34 | H11: 213.6 | I11: 655 | J11: 401.13 | K11: -7.3
A12: 2016-09-10 | B12: 108.4 | C12: 94.55 | D12: 123.94 | E12: 1115.06 | F12: 106.43 | G12: -53.34 | H12: 183.63 | I12: 560 | J12: 390 | K12: -3.54
A13: 2016-10-10 | B13: 105.76 | C13: 90.3 | D13: 133.49 | E13: 1175.87 | F13: 86.67 | G13: -53.34 | H13: 191 | I13: 540 | J13: 500 | K13: 41.78
A14: 2016-11-10 | B14: 112.68 | C14: 101.22 | D14: 143.71 | E14: 1253.05 | F14: 94.86 | G14: -53.34 | H14: 194.4 | I14: 500 | J14: 460 | K14: 36.35
A15: 2016-12-10 | B15: 122.32 | C15: 100.07 | D15: 151.07 | E15: 1256.1 | F15: 116.15 | G15: -53.34 | H15: 179.6 | I15: 512 | J15: 322 | K15: 11.15
A16: 2017-01-10 | B16: 130.47 | C16: 122.92 | D16: 161.44 | E16: 1325.01 | F16: 130.54 | G16: =+G15 -> -53.34 | H16: 191 | I16: 522 | J16: 300 | K16: 4.29
A17: 2017-02-10 | B17: 139.56 | C17: 131.1 | D17: 188.41 | E17: 1360 | F17: 131.43 | G17: =+G16 -> -53.34 | H17: 226 | I17: 604 | J17: 330 | K17: -5
A18: 2017-03-10 | B18: 146.45 | C18: 140.25 | D18: 204.51 | E18: 1375.07 | F18: 131.34 | G18: -53.34 | H18: 244.2 | I18: 651 | J18: 382 | K18: -40
A19: 2017-04-10 | B19: 78.46 | C19: 72.8 | D19: 171.67 | E19: 1324.03 | F19: 135.51 | G19: -53.34 | H19: 239 | I19: 640 | J19: 460 | K19: -48.71
A20: Average | B20: =+'Commodity Revenue'!AA20 -> 110.2452837 | C20: =+'Commodity Revenue'!AB20 -> 100.9589113 | D20: =+'Commodity Revenue'!AC20 -> 145.9801352 | E20: =+'Commodity Revenue'!AD20 -> 1212.088451 | F20: =+'Commodity Revenue'!AE20 -> 108.7342058 | G20: =+'Commodity Revenue'!AF20 -> -53.34 | H20: =+'Commodity Revenue'!AG20 -> 205.8038929 | I20: =+'Commodity Revenue'!AH20 -> 605.7771813 | J20: =+'Commodity Revenue'!AI20 -> 415.629612 | K20: =+'Commodity Revenue'!AJ20 -> 3.571398594

Sheet CRC Composition
A1: Cascade Recycling Center
A2: Tonnage Delivered and Processed
A5: Stream Composition-CRC | AC5: %
B6: 2016-05-05 | D6: 2016-06-05 | F6: 2016-07-05 | H6: 2016-08-05 | J6: 2016-09-05 | L6: 2016-10-05 | N6: 2016-11-05 | P6: 2016-12-05 | R6: 2017-01-05 | T6: 2017-02-05 | V6: 2017-03-11 | X6: 2017-04-11 | Z6: Total 2016 | AC6: Excluding
B7: Tons | D7: Tons | F7: Tons | H7: Tons | J7: Tons | L7: Tons | N7: Tons | P7: Tons | R7: Tons | T7: Tons | V7: Tons | X7: Tons | Z7: Tons | AC7: Residue
A8: Newspaper | B8: 2683.68 | C8: =B8/B$19 -> 0.3351428711 | D8: 3064.45 | E8: =D8/D$19 -> 0.3014434503 | F8: 1956.34 | G8: =F8/F$19 -> 0.2330110732 | H8: 2991.89 | I8: =H8/H$19 -> 0.3146989371 | J8: 2814.62 | K8: =J8/J$19 -> 0.317858373 | L8: 2878.49799 | M8: =L8/L$19 -> 0.3171895385 | N8: 3004.584148 | O8: =N8/N$19 -> 0.3203215848 | P8: 3116.990419 | Q8: =P8/P$19 -> 0.3473533266 | R8: 2559.984068 | S8: =R8/R$19 -> 0.2884799588 | T8: 2095.77 | U8: =T8/T$19 -> 0.2977495844 | V8: 2480.011371 | W8: =V8/V$19 -> 0.2993947714 | X8: 1895.380097 | Y8: =X8/X$19 -> 0.2593251894 | Z8: =+P8+N8+L8+J8+H8+F8+D8+B8+R8+T8+V8+X8 -> 31542.19809 | AA8: =+Z8/$Z$19 -> 0.3036845541 | AC8: =+Z8/($Z$19-$Z$18) -> 0.3320509338
A9: Mix Paper | B9: 1035.37 | C9: =B9/B$19 -> 0.1292989009 | D9: 2815.79 | E9: 0.2769832932 | F9: 1677.17 | G9: =F9/F$19 -> 0.1997603595 | H9: 1669.27 | I9: =H9/H$19 -> 0.1755804842 | J9: 1592.51 | K9: =J9/J$19 -> 0.179844042 | L9: 1491.230869 | M9: =L9/L$19 -> 0.1643227936 | N9: 2078.934335 | O9: =N9/N$19 -> 0.2216371744 | P9: 1518.810031 | Q9: =P9/P$19 -> 0.1692541991 | R9: 1783.471356 | S9: =R9/R$19 -> 0.2009761505 | T9: 1653.34 | U9: 0.2348928069 | V9: 1794.446162 | W9: 0.2166311836 | X9: 1513.806921 | Y9: 0.2071184915 | Z9: =+P9+N9+L9+J9+H9+F9+D9+B9+R9+T9+V9+X9 -> 20624.14968 | AA9: =+Z9/$Z$19 -> 0.1985668748 | AC9: =+Z9/($Z$19-$Z$18) -> 0.217114487
A10: OCC | B10: 1323.24 | C10: 0.1652486335 | D10: 1748.63 | E10: 0.1720090262 | F10: 1874.58 | G10: =F10/F$19 -> 0.2232729984 | H10: 1740.18 | I10: =H10/H$19 -> 0.1830390811 | J10: 1742.25 | K10: =J10/J$19 -> 0.1967543577 | L10: 1722.703021 | M10: =L10/L$19 -> 0.1898293409 | N10: 1474.026171 | O10: =N10/N$19 -> 0.1571473374 | P10: 1531.210976 | Q10: =P10/P$19 -> 0.1706361441 | R10: 1782.066432 | S10: =R10/R$19 -> 0.2008178322 | T10: 930.23 | U10: 0.1321593476 | V10: 1449.813687 | W10: 0.1750260674 | X10: 1325.942682 | Y10: 0.1814149772 | Z10: 18644.87297 | AA10: 0.1795106326 | AC10: 0.1962782512
A11: Aluminum | B11: 41.37 | C11: 0.005166361331 | D11: 30.4 | E11: 0.002990383556 | F11: 43.12 | G11: =F11/F$19 -> 0.005135833995 | H11: 43.01 | I11: =H11/H$19 -> 0.004523963543 | J11: 33.34 | K11: =J11/J$19 -> 0.003765125721 | L11: 39.54449073 | M11: =L11/L$19 -> 0.004357515207 | N11: 37.67979404 | O11: =N11/N$19 -> 0.004017078818 | P11: 40.13999048 | Q11: =P11/P$19 -> 0.004473147925 | R11: 52.91752145 | S11: =R11/R$19 -> 0.005963179458 | T11: 21.18 | U11: 0.003009078381 | V11: 36.32753703 | W11: 0.004385574506 | X11: 35.19579033 | Y11: 0.004815474747 | Z11: 454.2251241 | AA11: 0.004373225793 | AC11: 0.004781717373
A12: Tin Cans | B12: 73.51 | C12: 0.009180063365 | D12: 51.03 | E12: 0.005019712923 | F12: 82.09 | G12: =F12/F$19 -> 0.0097773797 | H12: 72.87 | I12: =H12/H$19 -> 0.007664757577 | J12: 86.17 | K12: =J12/J$19 -> 0.009731280244 | L12: 112.5151968 | M12: =L12/L$19 -> 0.01239835618 | N12: 107.9378693 | O12: =N12/N$19 -> 0.01150735931 | P12: 111.7869045 | Q12: =P12/P$19 -> 0.01245738611 | R12: 98.9983 | S12: =R12/R$19 -> 0.01115593877 | T12: 76.5 | U12: 0.01086848424 | V12: 88.87998818 | W12: 0.01072987167 | X12: 74.33 | Y12: 0.01016980254 | Z12: 1036.618259 | AA12: 0.009980438041 | AC12: 0.01091268465
A13: Glass | B13: 1887.23 | C13: 0.2356807371 | D13: 1535.71 | E13: 0.1510645372 | F13: 2011.18 | G13: =F13/F$19 -> 0.239542825 | H13: 2190.37 | I13: =H13/H$19 -> 0.230391863 | J13: 1812.11 | K13: =J13/J$19 -> 0.2046437303 | L13: 1946.334985 | M13: =L13/L$19 -> 0.2144719565 | N13: 1824.851859 | O13: =N13/N$19 -> 0.194549199 | P13: 1676.708253 | Q13: =P13/P$19 -> 0.18685017 | R13: 1590.116 | S13: =R13/R$19 -> 0.1791872863 | T13: 1392.87 | U13: 0.197887394 | V13: 1556.962789 | W13: 0.1879614439 | X13: 1465.341468 | Y13: 0.2004874665 | Z13: 20889.78535 | AA13: 0.2011243837 | AC13: 0.2199108861
A14: PET | B14: 73.87 | C14: 0.009225020824 | D14: 74.08 | E14: 0.00728709256 | F14: 60.45 | G14: =F14/F$19 -> 0.007199934254 | H14: 76.97 | I14: =H14/H$19 -> 0.008096011949 | J14: 112.39 | K14: =J14/J$19 -> 0.01269233593 | L14: 83.92669556 | M14: =L14/L$19 -> 0.009248111315 | N14: 64.93793344 | O14: =N14/N$19 -> 0.006923095085 | P14: 35.14217706 | Q14: =P14/P$19 -> 0.003916198148 | R14: 54.39467435 | S14: =R14/R$19 -> 0.006129637139 | T14: 72.97 | U14: 0.01036697117 | V14: 18.47734654 | W14: 0.002230643378 | X14: 107.21 | Y14: 0.01466843173 | Z14: 834.8188269 | AA14: 0.008037536969 | AC14: 0.008788302268
A15: HDPE Natl | B15: 21.33 | C15: 0.002663729446 | D15: 21.56 | E15: 0.002120811496 | F15: 22.2 | G15: =F15/F$19 -> 0.002644144589 | H15: 28.6 | I15: =H15/H$19 -> 0.003008262203 | J15: 17.35 | K15: =J15/J$19 -> 0.001959356066 | L15: 35.28783385 | M15: =L15/L$19 -> 0.003888462585 | N15: 29.90335021 | O15: =N15/N$19 -> 0.003188024717 | P15: 24.49303313 | Q15: =P15/P$19 -> 0.002729471507 | R15: 14.80174552 | S15: =R15/R$19 -> 0.001667981841 | T15: 20.56 | U15: 0.002920993934 | V15: 24.70458436 | W15: 0.00298241511 | X15: 15.5 | Y15: 0.002120704149 | Z15: 276.2905471 | AA15: 0.002660092723 | AC15: 0.002908565024
A16: HDPE Col | B16: 24.16 | C16: 0.003017145027 | D16: 19.16 | E16: 0.001884728583 | F16: 21.16 | G16: =F16/F$19 -> 0.002520274753 | H16: 18.34 | I16: =H16/H$19 -> 0.001929074433 | J16: 18.9 | K16: =J16/J$19 -> 0.002134399404 | L16: 12.96874834 | M16: =L16/L$19 -> 0.001429061724 | N16: 17.52914578 | O16: =N16/N$19 -> 0.001868798969 | P16: 12.00698908 | Q16: =P16/P$19 -> 0.001338043125 | R16: 20.22122207 | S16: =R16/R$19 -> 0.002278692818 | T16: 19.75 | U16: 0.002805915865 | V16: 20.58466275 | W16: 0.002485045218 | X16: 27.27 | Y16: 0.003731071106 | Z16: 232.050768 | AA16: 0.00223415736 | AC16: 0.002442844154
A17: #3 - 7 | B17: 26.13 | C17: 0.003263162233 | D17: 29.85 | E17: 0.002936281222 | F17: 51.19 | G17: =F17/F$19 -> 0.006097016285 | H17: 39.43 | I17: =H17/H$19 -> 0.004147404848 | J17: 40.55 | K17: =J17/J$19 -> 0.004579359567 | L17: 38.88601738 | M17: =L17/L$19 -> 0.004284956234 | N17: 35.4809261 | O17: =N17/N$19 -> 0.003782655408 | P17: 26.45575815 | Q17: =P17/P$19 -> 0.002948195011 | R17: 37.27380585 | S17: =R17/R$19 -> 0.004200317538 | T17: 24.89 | U17: 0.003536164349 | V17: 76.00143035 | W17: 0.009175131667 | X17: 30.9 | Y17: 0.004227726336 | Z17: 457.0379378 | AA17: 0.004400307232 | AC17: 0.004811328418
A18: Residue | B18: 817.68 | C18: 0.1021133752 | D18: 775.26 | E18: 0.07626068275 | F18: 596.43 | G18: =F18/F$19 -> 0.07103816025 | H18: 636.22 | I18: =H18/H$19 -> 0.06692016009 | J18: 584.76 | K18: =J18/J$19 -> 0.06603763996 | L18: 713.1133834 | M18: =L18/L$19 -> 0.07857990721 | N18: 704.0335795 | O18: =N18/N$19 -> 0.07505769211 | P18: 879.7996381 | Q18: =P18/P$19 -> 0.09804371846 | R18: 879.7996381 | S18: =R18/R$19 -> 0.09914302459 | T18: 730.64 | U18: 0.1038032591 | V18: 737.206213 | W18: 0.08899785226 | X18: 818.0161785 | Y18: 0.1119206648 | Z18: 8872.958631 | AA18: 0.08542779668
B19: =SUM(B8:B18) -> 8007.57 | C19: 1 | D19: 10165.92 | E19: 1 | F19: 8395.91 | G19: 1 | H19: 9507.15 | I19: 1 | J19: 8854.95 | K19: 1 | L19: 9075.009232 | M19: 1 | N19: 9379.899111 | O19: 1 | P19: 8973.54417 | Q19: 1 | R19: =SUM(R8:R18) -> 8874.044763 | S19: =SUM(S8:S18) -> 1 | T19: =SUM(T8:T18) -> 7038.7 | U19: =SUM(U8:U18) -> 1 | V19: =SUM(V8:V18) -> 8283.415771 | W19: =SUM(W8:W18) -> 1 | X19: =SUM(X8:X18) -> 7308.893137 | Y19: =SUM(Y8:Y18) -> 1 | Z19: =SUM(Z8:Z18) -> 103865.0062 | AA19: 1 | AC19: =SUM(AC8:AC18) -> 1

Sheet Customers
A1: Waste Management of Skagit County
A2: Recycling Customers by Jurisdiction
C5: 2016-05-01 | D5: 2016-06-01 | E5: 2016-07-01 | F5: 2016-08-01 | G5: 2016-09-01 | H5: 2016-10-01 | I5: 2016-11-01 | J5: 2016-12-01 | K5: 2017-01-01 | L5: 2017-02-01 | M5: 2017-03-01 | N5: 2017-04-01 | O5: Total
A6: Contract Cities:
B7: Anacortes | C7: 6433 | D7: 6444 | E7: 6447 | F7: 6454 | G7: 6460 | H7: 6483 | I7: 6483 | J7: 6489 | K7: 6504 | L7: 6512 | M7: 6518 | N7: 6518 | O7: =SUM(C7:N7) -> 77745
B8: Burlington | C8: 2127 | D8: 2128 | E8: 2122 | F8: 2129 | G8: 2141 | H8: 2136 | I8: 2128 | J8: 2133 | K8: 2129 | L8: 2152 | M8: 2168 | N8: 2168 | O8: =SUM(C8:N8) -> 25661
B9: Darrington | C9: 493 | D9: 493 | E9: 495 | F9: 489 | G9: 486 | H9: 484 | I9: 482 | J9: 485 | K9: 489 | L9: 485 | M9: 480 | N9: 480 | O9: 5841
B10: Mount Vernon | C10: 8994 | D10: 9035 | E10: 9111 | F10: 9119 | G10: 9239 | H10: 9206 | I10: 9228 | J10: 9326 | K10: 9353 | L10: 9369 | M10: 9390 | N10: 9390 | O10: 110760
B11: Stanwood | C11: 1653 | D11: 1664 | E11: 1668 | F11: 1680 | G11: 1675 | H11: 1682 | I11: 1679 | J11: 1674 | K11: 1695 | L11: 1710 | M11: 1719 | N11: 1719 | O11: 20218
B12: Other | C12: 434 | D12: 440 | E12: 443 | F12: 453 | G12: 453 | H12: 449 | I12: 439 | J12: 438 | K12: 444 | L12: 446 | M12: 446 | N12: 446 | O12: 5331
B13: Total | C13: =SUM(C7:C12) -> 20134 | D13: =SUM(D7:D12) -> 20204 | E13: =SUM(E7:E12) -> 20286 | F13: =SUM(F7:F12) -> 20324 | G13: =SUM(G7:G12) -> 20454 | H13: =SUM(H7:H12) -> 20440 | I13: =SUM(I7:I12) -> 20439 | J13: =SUM(J7:J12) -> 20545 | K13: =SUM(K7:K12) -> 20614 | L13: =SUM(L7:L12) -> 20674 | M13: =SUM(M7:M12) -> 20721 | N13: =SUM(N7:N12) -> 20721 | O13: =SUM(O7:O12) -> 245556
C14: =+C13/C$23 -> 0.6907980512 | D14: =+D13/D$23 -> 0.6893210508 | E14: 0.6887583608 | F14: 0.6877368706 | G14: 0.6879456478 | H14: 0.6879375337 | I14: 0.6874180204 | J14: 0.6880672494 | K14: 0.6874541453 | L14: 0.6879409024 | M14: 0.6861712696 | N14: 0.6861712696 | O14: 0.6879649008
A16: WUTC:
B17: Skagit County | C17: 4513 | D17: 4564 | E17: 4595 | F17: 4622 | G17: 4646 | H17: 4646 | I17: 4665 | J17: 4665 | K17: 4696 | L17: 4698 | M17: 4735 | N17: 4735 | O17: =SUM(C17:N17) -> 55780
B18: Island County | C18: 1906 | D18: 1938 | E18: 1970 | F18: 1992 | G18: 2000 | H18: 1991 | I18: 1983 | J18: 1986 | K18: 1998 | L18: 2005 | M18: 2037 | N18: 2037 | O18: 23843
B19: Snohomish County | C19: 2593 | D19: 2604 | E19: 2602 | F19: 2614 | G19: 2632 | H19: 2635 | I19: 2646 | J19: 2663 | K19: 2678 | L19: 2675 | M19: 2705 | N19: 2705 | O19: 31752
B20: Total | C20: =SUM(C17:C19) -> 9012 | D20: 9106 | E20: 9167 | F20: 9228 | G20: 9278 | H20: 9272 | I20: 9294 | J20: 9314 | K20: 9372 | L20: 9378 | M20: 9477 | N20: 9477 | O20: 111375
C21: =+C20/C$23 -> 0.3092019488 | D21: =+D20/D$23 -> 0.3106789492 | E21: 0.3112416392 | F21: 0.3122631294 | G21: 0.3120543522 | H21: 0.3120624663 | I21: 0.3125819796 | J21: 0.3119327506 | K21: 0.3125458547 | L21: 0.3120590976 | M21: 0.3138287304 | N21: 0.3138287304 | O21: 0.3120350992
B23: Grand Total | C23: =+C20+C13 -> 29146 | D23: =+D20+D13 -> 29310 | E23: 29453 | F23: 29552 | G23: 29732 | H23: 29712 | I23: 29733 | J23: 29859 | K23: 29986 | L23: 30052 | M23: 30198 | N23: 30198 | O23: 356931

Sheet Tonnages Collected
A1: WM of Skagit County
A2: Residential Recycling Tons Collected
D5: Less:
C6: Res'l | D6: CRC
C7: Collected | D7: Residual | E7: Net
A8: Month | C8: Tons | D8: Rate | E8: Tons
A10: May | C10: =+'Tonnages by day'!E29 -> 784.59 | D10: =+'CRC Composition'!C18 -> 0.1021133752 | E10: =+C10-C10*D10 -> 704.4728669
A11: Jun | C11: =+'Tonnages by day'!E51 -> 865.99 | D11: =+'CRC Composition'!E18 -> 0.07626068275 | E11: =+C11-C11*D11 -> 799.9490113
A12: Jul | C12: =+'Tonnages by day'!E72 -> 809.06 | D12: =+'CRC Composition'!G18 -> 0.07103816025 | E12: 751.5858661
A13: Aug | C13: =+'Tonnages by day'!E95 -> 833.81 | D13: =+'CRC Composition'!I18 -> 0.06692016009 | E13: 778.0113013
A14: Sep | C14: =+'Tonnages by day'!E117 -> 788.31 | D14: =+'CRC Composition'!K18 -> 0.06603763996 | E14: 736.251868
A15: Oct | C15: =+'Tonnages by day'!E138 -> 743.6 | D15: =+'CRC Composition'!M18 -> 0.07857990721 | E15: 685.167981
A16: Nov | C16: =+'Tonnages by day'!E160 -> 802.19 | D16: =+'CRC Composition'!O18 -> 0.07505769211 | E16: 741.97947
A17: Dec | C17: =+'Tonnages by day'!E182 -> 802.97 | D17: =+'CRC Composition'!Q18 -> 0.09804371846 | E17: 724.2438354
A18: Jan | C18: =+'Tonnages by day'!E204 -> 765.33 | D18: =+'CRC Composition'!S18 -> 0.09914302459 | E18: 689.452869
A19: Feb | C19: =+'Tonnages by day'!E223 -> 649.69 | D19: =+'CRC Composition'!U18 -> 0.1038032591 | E19: 582.2500606
A20: Mar | C20: =+'Tonnages by day'!E246 -> 776.51 | D20: =+'CRC Composition'!W18 -> 0.08899785226 | E20: 707.4022777
A21: Apr | C21: =+'Tonnages by day'!E266 -> 700.65 | D21: =+'CRC Composition'!Y18 -> 0.1119206648 | E21: 622.2327862
C22: =SUM(C10:C21) -> 9322.7 | D22: =(+C22-E22)/C22 -> 0.08577984987 | E22: =SUM(E10:E21) -> 8523.000194

Sheet Tonnages by day
A1: WM of Skagit
A2: Report for Residential Sideload Recycling
A3: Report Dates:5/1/2016-3/31/2017
A6: Landfill Name WSK - SKAGIT YARD | E6: Monthly
A7: Date | B7: Tons | C7: Loads | D7: Tons/Load | E7: Total
A8: 2016-05-02 | B8: 32.23 | C8: 7 | D8: =+B8/C8 -> 4.604285714
A9: 2016-05-03 | B9: 36.43 | C9: 8 | D9: =+B9/C9 -> 4.55375
A10: 2016-05-04 | B10: 43.57 | C10: 12 | D10: 3.630833333
A11: 2016-05-05 | B11: 42.05 | C11: 12 | D11: 3.504166667
A12: 2016-05-06 | B12: 45.14 | C12: 12 | D12: 3.761666667
A13: 2016-05-09 | B13: 24.79 | C13: 8 | D13: 3.09875
A14: 2016-05-10 | B14: 22.62 | C14: 6 | D14: 3.77
A15: 2016-05-11 | B15: 39.07 | C15: 11 | D15: 3.551818182
A16: 2016-05-12 | B16: 38.14 | C16: 11 | D16: 3.467272727
A17: 2016-05-13 | B17: 34.74 | C17: 10 | D17: 3.474
A18: 2016-05-16 | B18: 38.34 | C18: 10 | D18: 3.834
A19: 2016-05-17 | B19: 32.09 | C19: 8 | D19: 4.01125
A20: 2016-05-18 | B20: 49.11 | C20: 12 | D20: 4.0925
A21: 2016-05-19 | B21: 40.59 | C21: 11 | D21: 3.69
A22: 2016-05-20 | B22: 42.71 | C22: 11 | D22: 3.882727273
A23: 2016-05-23 | B23: 20.77 | C23: 6 | D23: 3.461666667
A24: 2016-05-24 | B24: 27.21 | C24: 6 | D24: 4.535
A25: 2016-05-25 | B25: 38.24 | C25: 11 | D25: 3.476363636
A26: 2016-05-26 | B26: 33.8 | C26: 9 | D26: 3.755555556
A27: 2016-05-27 | B27: 36.85 | C27: 7 | D27: 5.264285714
A28: 2016-05-30 | B28: 8.3 | C28: 2 | D28: 4.15
A29: 2016-05-31 | B29: 57.8 | C29: 18 | D29: 3.211111111 | E29: =SUM(B8:B29) -> 784.59
A30: 2016-06-01 | B30: 51.27 | C30: 13 | D30: 3.943846154
A31: 2016-06-02 | B31: 42.38 | C31: 11 | D31: 3.852727273
A32: 2016-06-03 | B32: 53.97 | C32: 13 | D32: 4.151538462
A33: 2016-06-06 | B33: 22.46 | C33: 6 | D33: 3.743333333
A34: 2016-06-07 | B34: 27.52 | C34: 6 | D34: 4.586666667
A35: 2016-06-08 | B35: 47.44 | C35: 12 | D35: 3.953333333
A36: 2016-06-09 | B36: 32.87 | C36: 8 | D36: 4.10875
A37: 2016-06-10 | B37: 33.05 | C37: 8 | D37: 4.13125
A38: 2016-06-13 | B38: 30.27 | C38: 7 | D38: 4.324285714
A39: 2016-06-14 | B39: 39.52 | C39: 10 | D39: 3.952
A40: 2016-06-15 | B40: 52.08 | C40: 11 | D40: 4.734545455
A41: 2016-06-16 | B41: 52.76 | C41: 13 | D41: 4.058461538
A42: 2016-06-17 | B42: 69.09 | C42: 13 | D42: 5.314615385
A43: 2016-06-20 | B43: 18.95 | C43: 4 | D43: 4.7375
A44: 2016-06-21 | B44: 35.38 | C44: 8 | D44: 4.4225
A45: 2016-06-22 | B45: 33.31 | C45: 7 | D45: 4.758571429
A46: 2016-06-23 | B46: 32.27 | C46: 9 | D46: 3.585555556
A47: 2016-06-24 | B47: 36.95 | C47: 10 | D47: 3.695
A48: 2016-06-27 | B48: 30.34 | C48: 8 | D48: 3.7925
A49: 2016-06-28 | B49: 33.67 | C49: 9 | D49: 3.741111111
A50: 2016-06-29 | B50: 46.53 | C50: 11 | D50: 4.23
A51: 2016-06-30 | B51: 43.91 | C51: 12 | D51: 3.659166667 | E51: =SUM(B30:B51) -> 865.99
A52: 2016-07-01 | B52: 46.65 | C52: 13 | D52: 3.588461538
A53: 2016-07-04 | B53: 23.03 | C53: 6 | D53: 3.838333333
A54: 2016-07-05 | B54: 34.11 | C54: 9 | D54: 3.79
A55: 2016-07-06 | B55: 35.15 | C55: 13 | D55: 2.703846154
A56: 2016-07-07 | B56: 49.73 | C56: 12 | D56: 4.144166667
A57: 2016-07-08 | B57: 31.11 | C57: 7 | D57: 4.444285714
A58: 2016-07-11 | B58: 33.27 | C58: 7 | D58: 4.752857143
A59: 2016-07-12 | B59: 36.94 | C59: 10 | D59: 3.694
A60: 2016-07-13 | B60: 45.85 | C60: 12 | D60: 3.820833333
A61: 2016-07-14 | B61: 48.16 | C61: 12 | D61: 4.013333333
A62: 2016-07-15 | B62: 54.92 | C62: 13 | D62: 4.224615385
A63: 2016-07-18 | B63: 29.38 | C63: 9 | D63: 3.264444444
A64: 2016-07-19 | B64: 23.39 | C64: 6 | D64: 3.898333333
A65: 2016-07-20 | B65: 36.59 | C65: 9 | D65: 4.065555556
A66: 2016-07-21 | B66: 34.95 | C66: 9 | D66: 3.883333333
A67: 2016-07-22 | B67: 37.72 | C67: 8 | D67: 4.715
A68: 2016-07-25 | B68: 31.88 | C68: 9 | D68: 3.542222222
A69: 2016-07-26 | B69: 36.28 | C69: 11 | D69: 3.298181818
A70: 2016-07-27 | B70: 45.78 | C70: 16 | D70: 2.86125
A71: 2016-07-28 | B71: 43.43 | C71: 11 | D71: 3.948181818
A72: 2016-07-29 | B72: 50.74 | C72: 15 | D72: 3.382666667 | E72: =SUM(B52:B72) -> 809.06
A73: 2016-08-01 | B73: 23.03 | C73: 8 | D73: =+B73/C73 -> 2.87875
A74: 2016-08-02 | B74: 26.6 | C74: 8 | D74: 3.325
A75: 2016-08-03 | B75: 56.46 | C75: 12 | D75: 4.705
A76: 2016-08-04 | B76: 41.98 | C76: 10 | D76: 4.198
A77: 2016-08-05 | B77: 35.32 | C77: 9 | D77: 3.924444444
A78: 2016-08-08 | B78: 33.1 | C78: 8 | D78: 4.1375
A79: 2016-08-09 | B79: 35.6 | C79: 8 | D79: 4.45
A80: 2016-08-10 | B80: 47.54 | C80: 12 | D80: 3.961666667
A81: 2016-08-11 | B81: 42.13 | C81: 11 | D81: 3.83
A82: 2016-08-12 | B82: 50.3 | C82: 14 | D82: 3.592857143
A83: 2016-08-15 | B83: 27.29 | C83: 7 | D83: 3.898571429
A84: 2016-08-16 | B84: 33.04 | C84: 9 | D84: 3.671111111
A85: 2016-08-17 | B85: 34.18 | C85: 9 | D85: 3.797777778
A86: 2016-08-18 | B86: 36.39 | C86: 9 | D86: 4.043333333
A87: 2016-08-19 | B87: 26.86 | C87: 6 | D87: 4.476666667
A88: 2016-08-22 | B88: 31.69 | C88: 7 | D88: 4.527142857
A89: 2016-08-23 | B89: 32.76 | C89: 7 | D89: 4.68
A90: 2016-08-24 | B90: 45.51 | C90: 12 | D90: 3.7925
A91: 2016-08-25 | B91: 43.75 | C91: 13 | D91: 3.365384615
A92: 2016-08-26 | B92: 45.23 | C92: 12 | D92: 3.769166667
A93: 2016-08-29 | B93: 25.07 | C93: 6 | D93: 4.178333333
A94: 2016-08-30 | B94: 26.22 | C94: 7 | D94: 3.745714286
A95: 2016-08-31 | B95: 33.76 | C95: 9 | D95: 3.751111111 | E95: =SUM(B73:B95) -> 833.81
A96: 2016-09-01 | B96: 34.66 | C96: 9 | D96: 3.851111111
A97: 2016-09-02 | B97: 29.93 | C97: 9 | D97: 3.325555556
A98: 2016-09-05 | B98: 12 | C98: 3 | D98: 4
A99: 2016-09-06 | B99: 53.57 | C99: 13 | D99: 4.120769231
A100: 2016-09-07 | B100: 50.5 | C100: 12 | D100: 4.208333333
A101: 2016-09-08 | B101: 44.46 | C101: 11 | D101: 4.041818182
A102: 2016-09-09 | B102: 50.27 | C102: 12 | D102: 4.189166667
A103: 2016-09-12 | B103: 27.76 | C103: 8 | D103: 3.47
A104: 2016-09-13 | B104: 27.85 | C104: 7 | D104: 3.978571429
A105: 2016-09-14 | B105: 36.69 | C105: 10 | D105: 3.669
A106: 2016-09-15 | B106: 43.1 | C106: 10 | D106: 4.31
A107: 2016-09-16 | B107: 34.93 | C107: 9 | D107: 3.881111111
A108: 2016-09-19 | B108: 30.24 | C108: 7 | D108: 4.32
A109: 2016-09-20 | B109: 38.01 | C109: 12 | D109: 3.1675
A110: 2016-09-21 | B110: 45.46 | C110: 10 | D110: 4.546
A111: 2016-09-22 | B111: 36.54 | C111: 10 | D111: 3.654
A112: 2016-09-23 | B112: 44.48 | C112: 12 | D112: 3.706666667
A113: 2016-09-26 | B113: 24.97 | C113: 8 | D113: 3.12125
A114: 2016-09-27 | B114: 20.78 | C114: 7 | D114: 2.968571429
A115: 2016-09-28 | B115: 43.78 | C115: 11 | D115: 3.98
A116: 2016-09-29 | B116: 25.02 | C116: 7 | D116: 3.574285714
A117: 2016-09-30 | B117: 33.31 | C117: 11 | D117: 3.028181818 | E117: =SUM(B96:B117) -> 788.31
A118: 2016-10-03 | B118: 31.68 | C118: 7 | D118: 4.525714286
A119: 2016-10-04 | B119: 34.65 | C119: 9 | D119: 3.85
A120: 2016-10-05 | B120: 38.9 | C120: 11 | D120: 3.536363636
A121: 2016-10-06 | B121: 43.5 | C121: 13 | D121: 3.346153846
A122: 2016-10-07 | B122: 48.15 | C122: 14 | D122: 3.439285714
A123: 2016-10-10 | B123: 25.16 | C123: 8 | D123: 3.145
A124: 2016-10-11 | B124: 26.51 | C124: 8 | D124: 3.31375
A125: 2016-10-12 | B125: 32.14 | C125: 8 | D125: 4.0175
A126: 2016-10-13 | B126: 38.81 | C126: 9 | D126: 4.312222222
A127: 2016-10-14 | B127: 17.07 | C127: 4 | D127: 4.2675
A128: 2016-10-17 | B128: 28 | C128: 6 | D128: 4.666666667
A129: 2016-10-18 | B129: 37.9 | C129: 11 | D129: 3.445454545
A130: 2016-10-19 | B130: 49.22 | C130: 13 | D130: 3.786153846
A131: 2016-10-20 | B131: 40.53 | C131: 9 | D131: 4.503333333
A132: 2016-10-21 | B132: 55.02 | C132: 11 | D132: 5.001818182
A133: 2016-10-24 | B133: 24.47 | C133: 6 | D133: 4.078333333
A134: 2016-10-25 | B134: 28.1 | C134: 9 | D134: 3.122222222
A135: 2016-10-26 | B135: 37.46 | C135: 10 | D135: 3.746
A136: 2016-10-27 | B136: 34.78 | C136: 9 | D136: 3.864444444
A137: 2016-10-28 | B137: 38.96 | C137: 9 | D137: =+B137/C137 -> 4.328888889
A138: 2016-10-31 | B138: 32.59 | C138: 8 | D138: 4.07375 | E138: =SUM(B118:B138) -> 743.6
A139: 2016-11-01 | B139: 32.87 | C139: 9 | D139: 3.652222222
A140: 2016-11-02 | B140: 45.7 | C140: 13 | D140: 3.515384615
A141: 2016-11-03 | B141: 45.6 | C141: 12 | D141: 3.8
A142: 2016-11-04 | B142: 50.05 | C142: 14 | D142: 3.575
A143: 2016-11-07 | B143: 30.1 | C143: 10 | D143: 3.01
A144: 2016-11-08 | B144: 26.98 | C144: 9 | D144: 2.997777778
A145: 2016-11-09 | B145: 31.55 | C145: 9 | D145: 3.505555556
A146: 2016-11-10 | B146: 28.62 | C146: 9 | D146: 3.18
A147: 2016-11-11 | B147: 20.25 | C147: 7 | D147: 2.892857143
A148: 2016-11-14 | B148: 40.95 | C148: 10 | D148: 4.095
A149: 2016-11-15 | B149: 38.15 | C149: 11 | D149: 3.468181818
A150: 2016-11-16 | B150: 51.22 | C150: 13 | D150: 3.94
A151: 2016-11-17 | B151: 45.23 | C151: 12 | D151: 3.769166667
A152: 2016-11-18 | B152: 49.48 | C152: 14 | D152: 3.534285714
A153: 2016-11-21 | B153: 22.85 | C153: 9 | D153: 2.538888889
A154: 2016-11-22 | B154: 25.74 | C154: 11 | D154: 2.34
A155: 2016-11-23 | B155: 36.79 | C155: 9 | D155: 4.087777778
A156: 2016-11-25 | B156: 17.36 | C156: 6 | D156: 2.893333333
A157: 2016-11-26 | B157: 17.75 | C157: 6 | D157: 2.958333333
A158: 2016-11-28 | B158: 48.73 | C158: 10 | D158: 4.873
A159: 2016-11-29 | B159: 43.36 | C159: 11 | D159: 3.941818182
A160: 2016-11-30 | B160: 52.86 | C160: 11 | D160: 4.805454545 | E160: =SUM(B139:B160) -> 802.19
A161: 2016-12-01 | B161: 51.82 | C161: 11 | D161: 4.710909091
A162: 2016-12-02 | B162: 46.74 | C162: 11 | D162: 4.249090909
A163: 2016-12-05 | B163: 27.31 | C163: 6 | D163: 4.551666667
A164: 2016-12-06 | B164: 27.4 | C164: 9 | D164: 3.044444444
A165: 2016-12-07 | B165: 41.76 | C165: 11 | D165: 3.796363636
A166: 2016-12-08 | B166: 20.6 | C166: 7 | D166: 2.942857143
A167: 2016-12-09 | B167: 31.49 | C167: 7 | D167: 4.498571429
A168: 2016-12-12 | B168: 30.46 | C168: 7 | D168: 4.351428571
A169: 2016-12-13 | B169: 34.37 | C169: 9 | D169: 3.818888889
A170: 2016-12-14 | B170: 43.7 | C170: 13 | D170: 3.361538462
A171: 2016-12-15 | B171: 35.83 | C171: 14 | D171: 2.559285714
A172: 2016-12-16 | B172: 45.86 | C172: 13 | D172: 3.527692308
A173: 2016-12-19 | B173: 28.16 | C173: 8 | D173: 3.52
A174: 2016-12-20 | B174: 26.02 | C174: 8 | D174: 3.2525
A175: 2016-12-21 | B175: 31.07 | C175: 9 | D175: 3.452222222
A176: 2016-12-22 | B176: 29.23 | C176: 9 | D176: 3.247777778
A177: 2016-12-23 | B177: 26.83 | C177: 7 | D177: 3.832857143
A178: 2016-12-26 | B178: 4.5 | C178: 2 | D178: 2.25
A179: 2016-12-27 | B179: 65.11 | C179: 14 | D179: 4.650714286
A180: 2016-12-28 | B180: 55.51 | C180: 13 | D180: 4.27
A181: 2016-12-29 | B181: 45.97 | C181: 13 | D181: 3.536153846
A182: 2016-12-30 | B182: 53.23 | C182: 14 | D182: 3.802142857 | E182: =SUM(B161:B182) -> 802.97
A183: 2017-01-02 | B183: 27.3 | C183: 9 | D183: 3.033333333
A184: 2017-01-03 | B184: 34.8 | C184: 12 | D184: 2.9
A185: 2017-01-04 | B185: 43.85 | C185: 14 | D185: 3.132142857
A186: 2017-01-05 | B186: 29.76 | C186: 9 | D186: 3.306666667
A187: 2017-01-06 | B187: 35.78 | C187: 10 | D187: 3.578
A188: 2017-01-09 | B188: 28.9 | C188: 6 | D188: 4.816666667
A189: 2017-01-10 | B189: 46.73 | C189: 10 | D189: 4.673
A190: 2017-01-11 | B190: 43.13 | C190: 12 | D190: 3.594166667
A191: 2017-01-12 | B191: 41.73 | C191: 14 | D191: 2.980714286
A192: 2017-01-13 | B192: 38.83 | C192: 10 | D192: 3.883
A193: 2017-01-16 | B193: 21.6 | C193: 7 | D193: 3.085714286
A194: 2017-01-17 | B194: 33.08 | C194: 10 | D194: 3.308
A195: 2017-01-18 | B195: 34.96 | C195: 9 | D195: 3.884444444
A196: 2017-01-19 | B196: 30.32 | C196: 9 | D196: 3.368888889
A197: 2017-01-20 | B197: 30.41 | C197: 9 | D197: 3.378888889
A198: 2017-01-23 | B198: 26.24 | C198: 6 | D198: 4.373333333
A199: 2017-01-24 | B199: 32.75 | C199: 10 | D199: 3.275
A200: 2017-01-25 | B200: 42.1 | C200: 10 | D200: 4.21
A201: 2017-01-26 | B201: 42.92 | C201: 13 | D201: =+B201/C201 -> 3.301538462
A202: 2017-01-27 | B202: 46.13 | C202: 11 | D202: 4.193636364
... 65 more rows
